Cogmind - Beta 16 @@@ ROGUE MODE // 2025.11.24 @ 20:35:03 // AFD2020/Player2 Player: Minty Result: Destroyed self with Sigix Terminator Performance ------------- Evolutions (7) 3500 Regions Visited (12) 2400 Robots Destroyed (162) 810 Value Destroyed (7381) 7381 Prototype IDs (45) 900 Alien Tech Used (1) 200 Bonus (7051) 7051 TOTAL SCORE: 22242 Bonus ------- Triggered High Security 500 High Alert Combat Kills 3146 Follower Combat Kills 4231 Aligned with FarCom 300 Scanned by Researcher 500 Friendly Fire -1626 Cogmind --------- Core Integrity 0/1300 Matter 193/300 Energy 695/695 System Corruption 19% Temperature Cool (0) Movement Walking (190) Ox1 Location -3/Quarantine Parts ------- > --- POWER (2) -------- Light Ion Engine Light Antimatter Reactor > --- PROPULSION (6) --- Flexi-carbon Leg Flexi-carbon Leg > --- UTILITY (8) ------ Advanced Heat Sink Advanced Energy Well Enhanced Optical Array Improved Targeting Computer Advanced Target Analyzer > --- WEAPON (5) ------- Phase Gun YOLO Cannon > --- INVENTORY (5) ---- Trap Reconfigurator Peak State ------------ > --- POWER ------------ Micro Antimatter Reactor Micro Antimatter Reactor > --- PROPULSION ------- Experimental Flexi-carbon Leg Experimental Flexi-carbon Leg Experimental Flexi-carbon Leg Experimental Flexi-carbon Leg Experimental Flexi-carbon Leg > --- UTILITY ---------- Advanced Cooling System Advanced Energy Well Enhanced Optical Array Improved Targeting Computer Improved Targeting Computer Advanced Target Analyzer Advanced Target Analyzer Hacking Suite > --- WEAPON ----------- Quantum Rifle Compact Mass Driver Sigix Terminator Ionic Axe > --- INVENTORY -------- Trap Reconfigurator Phase Gun YOLO Cannon Long-range Missile Launcher [Rating: 152] Favorites ----------- Power Nuclear Core Engine Ion Engine Power Core Nuclear Core Reactor Micro Antimatter Reactor Propulsion Improved Treads Treads Improved Treads Leg Experimental Flexi-carbon Leg Wheel Wheel Hover Unit Antigrav System Flight Unit Cooled VTOL Module Utility Hacking Suite Device Advanced Heat Sink Storage Huge Storage Unit Processor Improved Targeting Computer Hackware Hacking Suite Protection Hardened Light Armor Plating Weapon Advanced Beam Rifle Energy Gun Advanced Beam Rifle Energy Cannon Plasma Cannon Ballistic Gun Improved KE Penetrator Ballistic Cannon Light Cannon Launcher Long-range Missile Launcher Slashing Weapon Ionic Axe Piercing Weapon Lance Special Melee Weapon Datajack Build | -11 -10 -10 -10 -9 -8 -7 -6 -6 -5 -4 -3 -3 ------- Run | Yrd Mat Min Exi Min Mat Fac Fac Ext Fac Fac Res Qua Slots Evolved 14 | . . . . . 4 2 2 . 2 2 2 . Power 1 | . . . . . . . . . . . 1 . Propulsion 4 | . . . . . 1 . . . 1 1 1 . Utility 6 | . . . . . 1 2 2 . . 1 . . Weapon 3 | . . . . . 2 . . . 1 . . . Parts Attached 184 | . 13 . 6 2 10 21 7 24 40 15 33 13 Power 24 | . 1 . . . 1 . 1 6 2 1 7 5 Engine 9 | . 1 . . . . . . 3 1 . 3 1 Core 7 | . . . . . 1 . 1 3 . . 2 . Reactor 8 | . . . . . . . . . 1 1 2 4 Propulsion 41 | . 6 . 2 . 2 1 1 4 12 5 6 2 Treads 13 | . 4 . 2 . 1 1 1 4 . . . . Leg 9 | . . . . . 1 . . . . . 6 2 Wheel 2 | . 2 . . . . . . . . . . . Hover 14 | . . . . . . . . . 9 5 . . Flight 3 | . . . . . . . . . 3 . . . Utility 65 | . 2 . 2 1 4 12 4 7 16 6 8 3 Device 27 | . 1 . . . 1 8 1 2 6 5 2 1 Storage 8 | . . . 2 . 2 1 . 1 . . 1 1 Processor 13 | . . . . . . . 1 2 4 1 5 . Hackware 8 | . . . . . . . 2 . 6 . . . Protection 9 | . 1 . . 1 1 3 . 2 . . . 1 Artifact . | . . . . . . . . . . . . . Weapon 54 | . 4 . 2 1 3 8 1 7 10 3 12 3 Energy Gun 16 | . 1 . . . 2 7 . . . 1 4 1 Energy Cannon 8 | . . . . 1 1 . . 3 1 . 1 1 Ballistic Gun 16 | . 1 . . . . 1 . 3 6 . 5 . Ballistic Cannon 7 | . 2 . 2 . . . . . . 2 1 . Launcher 4 | . . . . . . . 1 1 1 . . 1 Special Weapon . | . . . . . . . . . . . . . Impact Weapon . | . . . . . . . . . . . . . Slashing Weapon 1 | . . . . . . . . . . . 1 . Piercing Weapon 1 | . . . . . . . . . 1 . . . Special Melee Weapon 1 | . . . . . . . . . 1 . . . Unidentified Prototypes 14 | . . . . . 1 2 . . 3 1 5 2 Corrupted Parts 4 | . . . . . . . . 2 . . 2 . System Corruption 21 | . . . . . . . . 7 . . 14 . Parts Lost 59 | . . . . . . 1 1 21 1 4 15 16 Power 12 | . . . . . . . . 4 . . 5 3 Propulsion 11 | . . . . . . . 1 4 . . 1 5 Utility 18 | . . . . . . . . 8 1 1 4 4 Weapon 18 | . . . . . . 1 . 5 . 3 5 4 Highest Loss Streak 12 | . . . . . . 1 1 12 1 2 5 11 To Critical Strikes 1 | . . . . . . . . . . . . 1 Average Backups 11 | . 6 7 7 6 9 19 23 23 4 3 3 2 Power . | . . . . . . . . 1 . . . . Propulsion 1 | . 2 2 . . . 1 3 3 . . . . Utility 7 | . 1 3 5 6 7 13 14 13 2 2 1 1 Weapon 2 | . 1 2 1 . 1 3 4 5 1 1 2 1 Tool/Special . | . . . . . . . . . . . . . Unused Backups 15 | . 2 . . . 1 5 1 . 6 . . . Power 2 | . 2 . . . . . . . . . . . Propulsion . | . . . . . . . . . . . . . Utility 8 | . . . . . 1 2 . . 5 . . . Weapon 4 | . . . . . . 2 1 . 1 . . . Tool/Special 1 | . . . . . . 1 . . . . . . Average Slot Usage (%) 94 | . 89 100 100 99 92 99 99 89 92 83 94 76 Engine 3 | . 14 14 14 14 3 . . 1 3 . 1 . Core 2 | . . . . . 5 7 6 4 . . . . Reactor 1 | . . . . . . . . . 1 5 5 6 Treads 13 | . 16 28 28 28 22 22 19 18 . . . . Leg 4 | . . . . . 4 . . . . . 26 17 Hover 2 | . . . . . . . . . 11 17 . . Flight 1 | . . . . . . . . . 9 . . . Device 9 | . 3 . . . 1 14 15 11 5 20 9 2 Storage 6 | . 14 14 14 14 9 7 6 6 . . 2 4 Processor 6 | . . . . . . . 6 7 7 9 18 19 Hackware 6 | . . . . . . . 9 11 26 10 5 1 Protection 7 | . 6 14 14 14 16 15 8 2 . . . 2 Energy Gun 11 | . . . . . 5 28 25 12 . 4 5 7 Energy Cannon 1 | . . . . . 5 . . 8 . . . 1 Ballistic Gun 4 | . 4 . . . . . . 1 18 6 10 . Ballistic Cannon 6 | . 16 28 28 26 18 . . . . 6 2 3 Peak Build Rating 152 | . 11 11 14 30 30 51 62 64 99 112 139 152 Average Rating 61 | . 8 11 12 14 24 42 60 55 76 98 125 112 On Entrance 42 | 6 6 11 11 14 14 30 51 61 51 99 93 110 Avg Prop Armor Cover (%) 2 | . . . . . 3 6 . . 1 . . . Naked Turns . | . . . . . . . . . . . . . Heaviest Build 130 | 12 21 21 56 21 49 129 130 122 45 50 73 61 Greatest Support 138 | 20 46 46 46 46 66 66 66 80 48 54 138 115 Greatest Overweight (x) 5 | . . . 1 . . 2 2 5 3 1 1 1 Average Overweight (x) . | . . . . . . . 1 1 . . . . Largest Inventory Capacity 25 | . 8 8 20 8 15 25 25 25 25 5 5 5 Average Capacity 13 | . 8 8 8 8 11 21 25 25 5 5 5 5 Most Carried 25 | . 8 8 8 8 15 25 25 25 25 5 5 5 Average Carried 12 | . 6 7 7 7 10 20 24 23 5 4 4 4 Final Capacity 25 | 8 8 8 8 8 15 25 25 25 5 5 5 5 Final Carried 25 | 6 8 8 8 8 15 25 25 24 5 5 5 1 Class Distribution -------------------- 26% | Tank 26% | Scavenger-Gunner 19% | Mutant 6% | Wizard-Gunner 5% | Hacker-Skirmisher 4% | Hacker-Gunner Dominant Class ---------------- Mutant | -10/Materials Mutant | -10/Mines Mutant | -10/Exiles Mutant | -9/Mines Tank | -8/Materials Tank | -7/Factory Hacker-Skirmisher | -6/Factory Scientist-Skirmisher | -6/Extension Wizard-Gunner | -5/Factory Scavenger-Gunner | -4/Factory Scavenger-Gunner | -3/Research Scavenger-Gunner | -3/Quarantine Resources | -11 -10 -10 -10 -9 -8 -7 -6 -6 -5 -4 -3 -3 ----------- Run | Yrd Mat Min Exi Min Mat Fac Fac Ext Fac Fac Res Qua Matter Collected 5557 | 200 197 152 . 134 188 395 252 525 1132 934 1116 332 Remotely . | . . . . . . . . . . . . . Salvage Created 7253 | . 127 122 . 109 296 793 455 658 1081 1536 1367 709 Parts 344 | . 8 5 . 9 17 36 21 34 70 52 58 34 Haulers Intercepted 7 | . 1 . . . 1 1 . . 3 . 1 . Recyclers Shooed 5 | . . . . . 1 1 . . . 1 2 . Parts Field Recycled . | . . . . . . . . . . . . . Retrieved Matter . | . . . . . . . . . . . . . Parts Self-Destructed . | . . . . . . . . . . . . . Prevented . | . . . . . . . . . . . . . Parts Restored 1 | . . . . . . 1 . . . . . . Broken 1 | . . . . . . 1 . . . . . . Kills | -11 -10 -10 -10 -9 -8 -7 -6 -6 -5 -4 -3 -3 ------- Run | Yrd Mat Min Exi Min Mat Fac Fac Ext Fac Fac Res Qua Combat Hostiles Destroyed 121 | . 4 5 . 2 5 12 11 14 10 26 15 17 Guns 49 | . 1 . . . 1 11 11 6 7 3 6 3 Cannons 37 | . 3 5 . 1 4 . . 3 . 9 4 8 AOE 28 | . . . . 1 . . . 5 3 12 2 5 Classes Destroyed 20 | . 3 2 . . 2 6 1 2 1 2 . 1 Worker 11 | . . . . . . 2 1 . . 1 2 5 Builder 8 | . . . . . . 1 . . 3 . 2 2 Tunneler 4 | . . 1 . . . 1 . . 2 . . . Hauler 7 | . 1 . . . 1 1 . . 3 . 1 . Recycler 4 | . . . . . . 1 . . 1 1 1 . Mechanic 4 | . . . . . . 1 . . 1 1 . 1 Operator 3 | . . . . . 1 . . . 2 . . . Watcher 2 | . . . . . . . . . 2 . . . Swarmer 20 | . 2 . . . . . 4 2 4 5 . 3 Grunt 52 | . 2 1 . 3 4 7 3 8 1 9 4 10 Brawler 3 | . . . . . . . . 1 . 1 . 1 Duelist 4 | . . . . . . 1 1 . . 1 . 1 Protector 1 | . . . . . . . . . . 1 . . Researcher 1 | . . . . . . . . . . . . 1 Sentry 10 | . . . . . 1 2 . . . 3 4 . Hunter 15 | . . . . . . . 3 2 1 3 4 2 Programmer 11 | . . . . . . 2 . . 4 2 3 . Heavy 1 | . . . . . . . . . . 1 . . Behemoth 1 | . . . . . . . . 1 . . . . Assembled 4 | . . 4 . . . . . . . . . . Best Kill Streak 12 | . 2 3 . 1 3 3 5 5 6 7 3 12 Combat Bots Only 9 | . 2 2 . 1 2 2 5 5 4 6 3 9 Max Kills in Single Turn 8 | . 1 2 . 1 1 1 2 2 3 6 3 8 Gunslinging 1 | . . . . . . . 1 . . . . . Exploded 5 | . . . . 1 . . . 1 2 5 2 5 Melee . | . . . . . . . . . . . . . Uniques/NPCs Destroyed . | . . . . . . . . . . . . . Combat | -11 -10 -10 -10 -9 -8 -7 -6 -6 -5 -4 -3 -3 -------- Run | Yrd Mat Min Exi Min Mat Fac Fac Ext Fac Fac Res Qua Hostile Shots Fired 771 | . 27 20 . 13 24 56 50 150 53 132 152 94 Missed 248 | . 9 7 . 4 6 23 10 40 14 52 61 22 Hits 523 | . 18 13 . 9 18 33 40 110 39 80 91 72 Melee 3 | . . . . . . . . . . 2 1 . Projectile 520 | . 18 13 . 9 18 33 40 110 39 78 90 72 Critical Strikes 22 | . . . . . 2 2 1 1 2 4 2 8 Actively Blocked 2 | . . . . . . . . . . . . 2 Part Disruptions 2 | . . . . . . . . . . . 2 . Damage Taken 10780 | . 166 190 . 188 284 449 634 2086 792 1534 2398 2059 Core 1716 | . 68 26 . 26 15 133 78 305 187 207 301 370 Absorbed by Shields . | . . . . . . . . . . . . . Redirected to Shielding 151 | . . . . . . . . . . . . 151 Ignored by Resistances 137 | . . . . . . . 137 . . . . . Regen/Repaired (Parts) 336 | . . . . . . 74 104 . 158 . . . Core Remaining (%) 68 | 100 . . . 1 89 77 . 48 81 80 . . Volleys Fired 295 | . 16 18 . 6 13 28 20 27 45 46 51 25 Largest 5 | . 2 2 . 2 4 4 4 4 4 5 5 5 Hottest 386 | . 60 60 . 100 177 284 284 286 132 220 321 386 Shots Fired 877 | . 25 36 . 10 46 105 65 69 146 127 182 66 Gun 623 | . 11 . . . 11 105 64 34 144 74 154 26 Cannon 231 | . 14 36 . 10 35 . . 24 . 48 26 38 Launcher 23 | . . . . . . . 1 11 2 5 2 2 Special . | . . . . . . . . . . . . . Kinetic 471 | . 23 36 . 8 26 2 . 10 144 89 115 18 Thermal 329 | . 2 . . 2 11 103 64 48 . 33 19 47 Explosive 22 | . . . . . . . 1 11 2 5 2 1 Electromagnetic 55 | . . . . . 9 . . . . . 46 . Robot Hit Streak 15 | . 4 4 . 6 7 9 11 8 10 13 15 13 Robot Miss Streak 6 | . 2 6 . 3 3 4 6 5 6 3 5 3 Penetration Max 1 | . . . . . . . . . 1 1 . . Secondary Targets 11 | . . . . . . 2 3 2 2 2 . . Max Gunslinging Chain 1 | . . . . . . 1 1 1 1 1 . . Shots Hit Robots 548 | . 15 16 . 4 23 65 41 39 86 93 123 43 Core Hits 342 | . 8 8 . 5 14 36 36 37 43 62 55 38 Critical Kills 18 | . . . . . . . . . 3 10 4 1 Critical Parts Destroyed 30 | . . . . . . . . . 4 18 8 . Critical Strikes 68 | . . . . . 2 2 1 . 8 29 21 5 Burn 8 | . . . . . 2 2 1 . . 1 . 2 Meltdown 4 | . . . . . . . . . . 1 2 1 Destroy 46 | . . . . . . . . . 7 27 12 . Blast 3 | . . . . . . . . . . . 1 2 Corrupt 4 | . . . . . . . . . . . 4 . Sever 2 | . . . . . . . . . . . 2 . Impale 1 | . . . . . . . . . 1 . . . Melee Attacks 37 | . . . . . . . . . 7 . 27 3 Impact . | . . . . . . . . . . . . . Slashing 30 | . . . . . . . . . . . 27 3 Piercing 7 | . . . . . . . . . 7 . . . Sneak Attacks 7 | . . . . . . . . . 3 . 3 1 Combat Hostiles . | . . . . . . . . . . . . . Follow-up Attacks . | . . . . . . . . . . . . . Damage Inflicted 28172 | . 227 341 . 254 500 1740 961 1919 3008 4547 4243 10432 Guns 9169 | . 68 . . . 160 1407 952 460 2283 1340 2055 444 Cannons 4793 | . 159 341 . 76 323 . . 364 . 1181 889 1460 Explosions 13034 | . . . . 173 . 289 . 1067 399 2026 623 8457 Melee 1063 | . . . . . . . . . 326 . 666 71 Ramming 113 | . . . . 5 17 44 9 28 . . 10 . Kinetic 6919 | . 215 341 . 76 208 14 . 121 2283 1402 1751 508 Thermal 16307 | . 12 . . 173 160 1682 952 703 . 1811 1233 9581 Explosive 3152 | . . . . . . . . 1067 399 1334 80 272 Electromagnetic 618 | . . . . . 115 . . . . . 503 . Impact . | . . . . . . . . . . . . . Slashing 737 | . . . . . . . . . . . 666 71 Piercing 326 | . . . . . . . . . 326 . . . Highest Corruption 19 | . . . . . . 2 . 8 5 1 14 19 Average Corruption 6 | . . . . . . 1 . 2 4 1 8 16 Corruption Purged 6 | . . . . . . . . . . . 6 . Corruption Blocked . | . . . . . . . . . . . . . Effects 63 | . . . . . . 5 . 3 5 3 32 15 Message Errors 9 | . . . . . . 1 . . 2 . 3 3 Matter Fused 16 | . . . . . . . . . . 2 11 3 Heat Flow Errors 3 | . . . . . . . . . . . 1 2 Energy Discharges 8 | . . . . . . 2 . 1 1 . 1 3 Parts Rejected 2 | . . . . . . . . . . 1 . 1 Data Loss (minor) 8 | . . . . . . . . . 2 . 6 . Data Loss (major) 4 | . . . . . . 1 . . . . 2 1 Misfires 3 | . . . . . . . . 1 . . 1 1 Alerts 3 | . . . . . . . . 1 . . 2 . Misdirections 3 | . . . . . . . . . . . 3 . Weapon Failures 4 | . . . . . . 1 . . . . 2 1 Overload Shots . | . . . . . . . . . . . . . Overflow Damage 1198 | . . 14 . . . 44 . 20 34 66 242 778 Projectiles 219 | . . 14 . . . . . 2 . 30 74 99 Explosions 847 | . . . . . . 44 . 18 21 36 49 679 Melee 132 | . . . . . . . . . 13 . 119 . Knockbacks 9 | . 1 2 . . 1 2 . . . . 2 1 Impact 2 | . . . . . . 2 . . . . . . Kinetic 7 | . 1 2 . . 1 . . . . . 2 1 Secondary . | . . . . . . . . . . . . . Self-Inflicted Damage 1410 | . . . . 71 . 74 25 22 37 . 56 1125 Shots 11 | . . . . 1 . 1 1 1 1 . 1 5 Rammed 16 | . . . . 2 4 4 2 4 . . . . Targets Rammed 20 | . . . . 2 5 6 2 4 . . 1 . Kicked 1 | . . . . . . . . . . . 1 . Crushed 3 | . . . . . 1 2 . . . . . . Highest Temperature 495 | . 93 125 . 133 495 445 351 417 322 251 87 120 Average Temperature 102 | . 33 42 . 49 200 131 132 109 73 91 25 45 Received Heat Transfer 1779 | . 66 29 . 66 144 108 126 333 99 274 195 339 Effects 17 | . . . . . 7 5 4 1 . . . . Shutdowns 3 | . . . . . 1 1 . 1 . . . . Energy Bleed 3 | . . . . . 2 . 1 . . . . . Interference 7 | . . . . . 1 3 3 . . . . . Short Circuit 1 | . . . . . . 1 . . . . . . Damage (major) 3 | . . . . . 3 . . . . . . . Siege Activations . | . . . . . . . . . . . . . Martial Activations . | . . . . . . . . . . . . . Shielding Activations . | . . . . . . . . . . . . . Robots Disrupted . | . . . . . . . . . . . . . Combat Hostiles . | . . . . . . . . . . . . . Robots Corrupted 1 | . . . . . . . . . . . 1 . Combat Hostiles 1 | . . . . . . . . . . . 1 . Parts Fried 4 | . . . . . . . . . . . 4 . Impact Corruptions . | . . . . . . . . . . . . . Robots Melted 6 | . . . . . . 1 . . . 2 2 1 Combat Hostiles 6 | . . . . . . 1 . . . 2 2 1 Parts Melted 21 | . . . . . . 9 1 2 . 5 2 2 Heat Transferred 12005 | . 25 . . 240 444 2909 2088 1395 . 1849 970 2085 Parts Sabotaged . | . . . . . . . . . . . . . Parts Stolen . | . . . . . . . . . . . . . Parts Stripped . | . . . . . . . . . . . . . Power Chain Reactions . | . . . . . . . . . . . . . Alert | -11 -10 -10 -10 -9 -8 -7 -6 -6 -5 -4 -3 -3 ------- Run | Yrd Mat Min Exi Min Mat Fac Fac Ext Fac Fac Res Qua Maximum Alert Level 5 | . 1 . . 1 2 3 3 2 3 5 5 4 Low Security (%) 14 | . 88 100 . 95 24 4 . . . . . . Level 1 40 | . 11 . . 4 65 74 59 63 51 4 . . Level 2 16 | . . . . . 10 16 37 36 35 7 . . Level 3 10 | . . . . . . 5 3 . 12 24 24 43 Level 4 15 | . . . . . . . . . . 30 71 56 Level 5 2 | . . . . . . . . . . 34 . . High Security . | . . . . . . . . . . . 4 . Max Security . | . . . . . . . . . . . . . Peak Influence 1779 | . 237 158 . 207 445 736 712 572 822 1779 1753 1472 Initial 1100 | . . 84 . . 76 194 355 344 272 390 920 1100 Average 571 | . 108 71 . 54 243 381 413 393 464 1258 1264 1190 Influence Increases 9486 | . 327 137 . 307 643 1237 699 802 1010 1698 1661 965 Destroy 0b10 Robot/C 4740 | . 220 80 . 160 240 540 460 500 460 740 900 440 Destroy 0b10 Robot/NC 350 | . 10 10 . . 25 50 10 10 80 50 60 45 Destroy Leader 952 | . 34 20 . 30 64 142 80 70 112 144 206 50 Allied During Kill 1349 | . 63 27 . 61 80 169 124 146 147 187 216 129 Trap Triggered on 0b10 30 | . . . . . . . . . . 10 20 . Successful Hack 123 | . . . . . 17 44 16 . 16 . 24 6 Select Force Hacks 30 | . . . . . . . . . . 30 . . Disable Machine 375 | . . . . 15 . 60 . 15 75 120 45 45 Anti-Garrison Action 550 | . . . . . 200 200 . . . 150 . . Destroy Structure 867 | . . . . 26 17 32 9 61 120 222 160 220 Partial Spotted 15 | . . . . . . . . . . 15 . . Lose Combat Pursuer 105 | . . . . 15 . . . . . 30 30 30 Influence Decreases 7916 | . 110 354 . 110 411 939 722 950 768 742 1662 1148 Entered New Map 3515 | . . 133 . . 121 235 372 360 284 408 834 768 Time Decay 3281 | . 110 191 . 90 270 604 310 350 464 254 478 160 Lost Part 970 | . . 30 . . . 40 10 220 20 80 350 220 Lost Ally 150 | . . . . 20 20 60 30 20 . . . . Squads Dispatched 55 | . 2 . . 1 4 11 5 4 7 7 9 5 Investigation 19 | . 2 . . . 1 5 3 2 1 2 2 1 Extermination 9 | . . . . . . 3 1 . 2 . 3 . Reinforcement 18 | . . . . 1 2 2 1 2 3 2 2 3 Assault 5 | . . . . . . . . . . 3 1 1 Garrison 4 | . . . . . 1 1 . . 1 . 1 . Intercept . | . . . . . . . . . . . . . Searches Triggered . | . . . . . . . . . . . . . Construction Impeded 9 | . . . . 1 . 1 1 2 1 1 . 2 Haulers Reinforced 1 | . . . . . . . . . 1 . . . Active Scanning Responses . | . . . . . . . . . . . . . Cargo Convoy Interrupts . | . . . . . . . . . . . . . Stealth | -11 -10 -10 -10 -9 -8 -7 -6 -6 -5 -4 -3 -3 --------- Run | Yrd Mat Min Exi Min Mat Fac Fac Ext Fac Fac Res Qua Distress Signals 16 | . 3 . . . 1 1 1 3 1 2 3 1 Communications Jammed . | . . . . . . . . . . . . . Distress Signals . | . . . . . . . . . . . . . Times Spotted 260 | . 11 18 . 7 13 21 25 28 29 43 40 25 Peak Tracking Total 7 | . 5 7 . 4 5 3 6 7 4 6 6 7 Tactical Retreats 8 | . . 1 . 1 . . . . . 2 2 2 Traps | -11 -10 -10 -10 -9 -8 -7 -6 -6 -5 -4 -3 -3 ------- Run | Yrd Mat Min Exi Min Mat Fac Fac Ext Fac Fac Res Qua Traps Triggered 7 | . 1 . . . . 3 . 1 1 . 1 . Indirectly . | . . . . . . . . . . . . . Trap Hack Attempts . | . . . . . . . . . . . . . Triggered . | . . . . . . . . . . . . . Disarmed . | . . . . . . . . . . . . . Reprogrammed . | . . . . . . . . . . . . . Reused 3 | . . . . . . . . . . 1 2 . Traps Reconfigurated 26 | . . . . . . 9 . 12 . 4 1 . Traps Extracted 5 | . . . . . . 5 . . . . . . Installed 2 | . . . . . . . . . . . 2 . Triggered 3 | . . . . . . . . . . 1 2 . Most Traps Carried 5 | . . . . . . 5 5 5 5 5 5 . Machines | -11 -10 -10 -10 -9 -8 -7 -6 -6 -5 -4 -3 -3 ---------- Run | Yrd Mat Min Exi Min Mat Fac Fac Ext Fac Fac Res Qua Machines Disabled 28 | . 1 . . 1 . 4 . 2 5 9 3 3 Max in Single Turn 2 | . . . . 1 . 2 . 1 1 2 1 1 Garrison Access 4 | . . . . . 1 1 . . 1 1 . . Energy Cycler 2 | . . . . . . . . 2 . . . . Machines Repaired . | . . . . . . . . . . . . . Machines Dismantled . | . . . . . . . . . . . . . Machines Sabotaged . | . . . . . . . . . . . . . Overloaded Fab Kills . | . . . . . . . . . . . . . Hacking | -11 -10 -10 -10 -9 -8 -7 -6 -6 -5 -4 -3 -3 --------- Run | Yrd Mat Min Exi Min Mat Fac Fac Ext Fac Fac Res Qua Machines Accessed 35 | . 1 . 2 . 2 9 5 3 4 2 3 4 Terminals 18 | . 1 . . . 1 3 2 3 1 1 3 3 Fabricators 2 | . . . . . . 1 . . 1 . . . Repair Stations 5 | . . . . . . 2 2 . 1 . . . Recycling Units 1 | . . . . . . . . . . 1 . . Scanalyzers 4 | . . . . . . 2 1 . . . . 1 Garrison Access 3 | . . . . . 1 1 . . 1 . . . Total Hacks 89 | . 6 . 2 . 6 24 11 7 10 5 7 11 Successful 46 | . 3 . 2 . 5 12 6 2 7 2 2 5 Failed 41 | . 3 . . . 1 12 4 5 3 3 5 5 Catastrophic 10 | . 1 . . . . 4 2 . . 1 2 . Database Lockouts 2 | . . . . . . . 1 . . . . 1 Manual 25 | . . . 1 . 2 10 4 2 2 2 . 2 Terminals 49 | . 6 . . . 4 9 4 7 3 3 7 6 Fabricators 5 | . . . . . . 2 . . 3 . . . Repair Stations 10 | . . . . . . 4 3 . 3 . . . Recycling Units 2 | . . . . . . . . . . 2 . . Scanalyzers 16 | . . . . . . 7 4 . . . . 5 Garrison Access 5 | . . . . . 2 2 . . 1 . . . Terminal Hacks 21 | . 3 . 2 . 3 4 2 1 1 . 2 3 Record 1 | . . . 1 . . . . . . . . . Prototype ID Bank 4 | . 1 . . . 1 2 . . . . . . Open Door 4 | . . . . . . . 1 1 . . 1 1 Level Access Points 1 | . . . . . . . . . 1 . . . Branch Access Points 3 | . . . . . 1 . 1 . . . 1 . Alert Level 2 | . . . . . . 1 . . . . . 1 Locate Traps 3 | . 1 . . . . 1 . . . . . 1 Zone Layout 2 | . 1 . . . 1 . . . . . . . Proto ID Catalog 1 | . . . 1 . . . . . . . . . Fabricator Hacks 2 | . . . . . . . . . 2 . . . Network Status 1 | . . . . . . . . . 1 . . . Build 1 | . . . . . . . . . 1 . . . Repair Station Hacks 2 | . . . . . . . . . 2 . . . Scan Component 1 | . . . . . . . . . 1 . . . Repair 1 | . . . . . . . . . 1 . . . Recycling Unit Hacks 1 | . . . . . . . . . . 1 . . Report Inventory 1 | . . . . . . . . . . 1 . . Scanalyzer 10 | . . . . . . 5 3 . . . . 2 Retrieve Study 10 | . . . . . . 5 3 . . . . 2 Garrison Access Hacks 1 | . . . . . . . . . 1 . . . Seal Access 1 | . . . . . . . . . 1 . . . Unauthorized Hacks 9 | . . . . . 2 3 1 1 1 1 . . Terminals 2 | . . . . . 1 . . 1 . . . . Botnet 2 | . . . . . 1 . . 1 . . . . Fabricators 2 | . . . . . . 1 . . 1 . . . Prioritize 1 | . . . . . . . . . 1 . . . Liberate 1 | . . . . . . 1 . . . . . . Repair Stations 2 | . . . . . . 1 1 . . . . . Patch 2 | . . . . . . 1 1 . . . . . Recycling Units 1 | . . . . . . . . . . 1 . . Tunnel 1 | . . . . . . . . . . 1 . . Scanalyzers . | . . . . . . . . . . . . . Garrison Access 2 | . . . . . 1 1 . . . . . . Jam 2 | . . . . . 1 1 . . . . . . Data Cores Recovered 1 | . . . . . . . . . 1 . . . Used . | . . . . . . . . . . . . . Hacking Detections 24 | . 1 . . . 2 7 2 2 3 1 3 3 Full Trace Events 12 | . 1 . . . . 2 2 2 1 1 2 1 Feedback Events 2 | . . . . . . . . 1 1 . . . Corruption 1 | . . . . . . . . 1 . . . . Hackware Fried 1 | . . . . . . . . . 1 . . . Feedback Blocked . | . . . . . . . . . . . . . Robot Schematics Acquired 1 | . . . . . . . . . . . . 1 Robots Built . | . . . . . . . . . . . . . Authchips . | . . . . . . . . . . . . . Time . | . . . . . . . . . . . . . Total Robot Build Rating . | . . . . . . . . . . . . . Part Schematics Acquired 2 | . . . . . . . . . . . . 2 Parts Built 2 | . . . . . . . . . 2 . . . Authchips . | . . . . . . . . . . . . . Time 69 | . . . . . . . . . 69 . . . Total Part Build Rating 18 | . . . . . . . . . 18 . . . Part Studies Acquired 10 | . . . . . . 5 3 . . . . 2 Parts Repaired 1 | . . . . . . . . . 1 . . . Time 44 | . . . . . . . . . 44 . . . Parts Recycled . | . . . . . . . . . . . . . Recycled Matter . | . . . . . . . . . . . . . Retrieved Matter . | . . . . . . . . . . . . . Retrieved Components . | . . . . . . . . . . . . . Parts Scanalyzed . | . . . . . . . . . . . . . Part Schematics Acquired . | . . . . . . . . . . . . . Parts Damaged . | . . . . . . . . . . . . . Bothacking | -11 -10 -10 -10 -9 -8 -7 -6 -6 -5 -4 -3 -3 ------------ Run | Yrd Mat Min Exi Min Mat Fac Fac Ext Fac Fac Res Qua Used RIF Installer . | . . . . . . . . . . . . . Robots Hacked . | . . . . . . . . . . . . . Non-combat . | . . . . . . . . . . . . . Combat . | . . . . . . . . . . . . . Robot Hacks Applied . | . . . . . . . . . . . . . Relay Couplers Released 4 | . . . . . . . . . 3 1 . . Machine Destruction 1 | . . . . . . . . . . 1 . . Programmers 3 | . . . . . . . . . 3 . . . Fabnet Peak Effective % . | . . . . . . . . . . . . . Robots Rewired . | . . . . . . . . . . . . . Allies Hacked 2 | . . . . . . . 2 . . . . . Hacks Repelled . | . . . . . . . . . . . . . Allies | -11 -10 -10 -10 -9 -8 -7 -6 -6 -5 -4 -3 -3 -------- Run | Yrd Mat Min Exi Min Mat Fac Fac Ext Fac Fac Res Qua Total Allies 12 | . 1 3 . . . 5 2 1 . . . . Largest Group 4 | . 1 4 4 4 2 4 4 2 1 1 1 1 Highest-Rated Group 194 | . 57 99 99 99 85 166 194 133 143 161 180 149 Highest-Rated Ally 180 | . 57 59 59 59 73 92 113 120 143 161 180 149 Total Orders . | . . . . . . . . . . . . . Ally Attacks 356 | . 18 29 . 13 21 64 42 29 23 37 66 14 Total Damage 16708 | . 235 319 . 151 898 1761 1781 1637 1286 2807 5365 468 Kills 150 | . 8 7 . 6 10 18 14 13 15 18 36 5 Allies Corrupted . | . . . . . . . . . . . . . Allies Melted . | . . . . . . . . . . . . . Intel | -11 -10 -10 -10 -9 -8 -7 -6 -6 -5 -4 -3 -3 ------- Run | Yrd Mat Min Exi Min Mat Fac Fac Ext Fac Fac Res Qua Active Infowar (turns) 3761 | . 88 . . . . 58 687 494 270 546 1296 322 Optics 2342 | . . . . . . . . . 178 546 1296 322 IFF 92 | . . . . . . . . . 92 . . . Terrain 1181 | . . . . . . . 687 494 . . . . Traps 153 | . . . . . . 58 1 73 . 21 . . Seismic 88 | . 88 . . . . . . . . . . . Cloaking 1 | . . . . . . 1 . . . . . . Robot Analysis Total . | . . . . . . . . . . . . . Derelict Logs Recovered 2 | . . 1 . 1 . . . . . . . . Drone Launches . | . . . . . . . . . . . . . Drone Recoveries . | . . . . . . . . . . . . . Exploration | -11 -10 -10 -10 -9 -8 -7 -6 -6 -5 -4 -3 -3 ------------- Run | Yrd Mat Min Exi Min Mat Fac Fac Ext Fac Fac Res Qua Turns Passed 8825 | . 320 421 406 348 581 1946 688 781 1170 546 1296 322 Spaces Moved 4868 | 1 193 213 231 185 295 864 255 279 820 496 831 205 Core . | . . . . . . . . . . . . . Treads 2405 | . 83 213 231 185 295 864 255 279 . . . . Legs 981 | 1 1 . . . . . . . . . 774 205 Wheels 109 | . 109 . . . . . . . . . . . Hover 1128 | . . . . . . . . . 575 496 57 . Flight 245 | . . . . . . . . . 245 . . . Fastest Speed 29 | 120 80 160 160 160 160 160 216 213 29 48 52 90 Average Speed 129 | 120 114 160 160 160 160 189 220 226 75 50 87 94 Slowest Speed 360 | 120 160 160 240 160 160 240 285 360 240 108 170 180 Overloaded Moves 1 | . . . . . . . . . 1 . . . Propulsion Burnouts . | . . . . . . . . . . . . . Robots Hopped . | . . . . . . . . . . . . . Potential Cave-ins 7 | . . . . . . . . . . . 7 . Cave-ins Triggered 1 | . . . . . . . . . . . . 1 Exploration Rate (%) 28 | 2 32 51 61 43 35 28 9 42 23 11 17 19 Regions Visited 12 Branch Regions 5 Pre-discovered Areas 4 | . . 1 1 1 . . . . . 1 . . Known Exits Taken 3 | . . . . . . . 1 . 1 . 1 . Unknown Exits Taken 9 | 1 1 1 1 1 1 1 . 1 . 1 . . Scrap Searched 1 | . . 1 . . . . . . . . . . Spaces Dug 19 | . . . . . . . 5 . 1 . 13 . Terrain Destroyed 565 | . . . . 40 . 23 5 98 36 98 69 196 Melee 14 | . . . . . . . . . 1 . 13 . Projectile 45 | . . . . 2 . . . . 14 9 8 12 AOE 506 | . . . . 38 . 23 5 98 21 89 48 184 Terrain Rammed . | . . . . . . . . . . . . . Walls Destroyed . | . . . . . . . . . . . . . Machines Disabled . | . . . . . . . . . . . . . Actions | -11 -10 -10 -10 -9 -8 -7 -6 -6 -5 -4 -3 -3 --------- Run | Yrd Mat Min Exi Min Mat Fac Fac Ext Fac Fac Res Qua Total 6609 | . 273 258 266 221 370 1090 329 355 1273 686 1220 268 Wait 884 | . 29 26 22 21 34 109 23 7 296 87 230 . Move 4856 | . 192 212 230 184 294 863 254 278 819 495 830 205 Hop . | . . . . . . . . . . . . . Pick Up 63 | . 10 1 3 . 8 23 7 2 3 . 5 1 Fast Attach 107 | . 2 . . 2 5 8 1 15 24 13 26 11 Attach 49 | . 5 . . 1 1 3 4 5 10 5 7 8 Detach 33 | . 2 . . 1 1 . 1 1 12 5 5 5 Swap 136 | . 7 . 6 2 4 30 11 14 15 20 22 5 Drop 125 | . 10 1 5 2 5 20 6 . 42 15 14 5 Fire 295 | . 16 18 . 6 13 28 20 27 45 46 51 25 Melee 37 | . . . . . . . . . 7 . 27 3 Ram . | . . . . . . . . . . . . . Kick 1 | . . . . . . . . . . . 1 . Crush 19 | . . . . 2 5 6 2 4 . . . . Escape Stasis 2 | . . . . . . . . 2 . . . . Rewire . | . . . . . . . . . . . . . Trap 2 | . . . . . . . . . . . 2 . Miscellaneous . | . . . . . . . . . . . . . Route ------- -11/Scrapyard -10/Materials -10/Mines (discovered 2 exits: [*Mat] / *Exi) -10/Exiles -9/Mines -8/Materials (discovered 3 exits: *Fac / Sto x2) -7/Factory -6/Factory (discovered 4 exits: Low x2 / *Ext x2) -6/Extension -5/Factory (discovered 5 exits: *Fac x4 / [*Upp]) -4/Factory -3/Research (discovered 3 exits: [*Res] / *Qua x2) -3/Quarantine History --------- Turn | Location | Event 1 | -11/Scrapyard | Discovered new exit (range 0) 1 | -11/Scrapyard | Entered Materials 79 | -10/Materials | Discovered new exit (range 15) 303 | -10/Materials | Build established: Mutant 321 | -10/Materials | Entered Mines 358 | -10/Mines | Assembled infested the area 424 | -10/Mines | Core integrity fell below 50% 446 | -10/Mines | Core integrity fell below 20% 511 | -10/Mines | Learned Materials garrison access intel 511 | -10/Mines | Assisted by bots powering up and referring to "LRC-V3" 703 | -10/Mines | Learned location of Storage (-8) 703 | -10/Mines | Discovered new exit (range 6) 726 | -10/Mines | Deemed a non-threat by the Exiles lab entrance 727 | -10/Mines | Discovered new exit (range 5) 742 | -10/Mines | Entered Exiles 742 | -10/Exiles | Accompanied by 3 allies 784 | -10/Exiles | Met 8R-AWN 811 | -10/Exiles | Met EX-HEX 853 | -10/Exiles | Met EX-BIN 872 | -10/Exiles | Aligned with FarCom system 874 | -10/Exiles | Given EX-Vault access code 912 | -10/Exiles | Opened EX-Vault 926 | -10/Exiles | Found Trap Reconfigurator 932 | -10/Exiles | Found YOLO Cannon 938 | -10/Exiles | Found Cloak of Protection 976 | -10/Exiles | Warned to stay clear of 0b10 Research branches 1021 | -10/Exiles | Met EX-DEC 1034 | -10/Exiles | Learned location of Zion (-7) 1127 | -10/Exiles | Discovered new exit (range 10) 1148 | -10/Exiles | Stole three prototypes: Cloak of Protection, Trap Reconfigurator, YOLO Cannon 1148 | -10/Exiles | Entered Mines 1148 | -9/Mines | Accompanied by 3 allies 1294 | -9/Mines | YI-UF0 nonchalantly dropped a Grenade Launcher on the ground 1386 | -9/Mines | Received a Rocket Launcher from a helpful Derelict 1478 | -9/Mines | Discovered new exit (range 10) 1496 | -9/Mines | Entered Materials 1496 | -8/Materials | Accompanied by 1 ally 1496 | -8/Materials | Evolved 4 slots: Propulsion x1, Utility x1, Weapon x2 1497 | -8/Materials | Loaded intel: 1 garrison access location 1549 | -8/Materials | Garrison activated, responded to threat 1605 | -8/Materials | Identified exit to Storage 2036 | -8/Materials | Discovered new exit (range 6) 2077 | -8/Materials | Entered Factory 2077 | -7/Factory | Evolved 2 slots: Utility x2 2079 | -7/Factory | FarCom data flow suspended 2151 | -7/Factory | Garrison activated, responded to threat 2378 | -7/Factory | Build established: Tank 3969 | -7/Factory | Discovered new exit (range 15) 4023 | -7/Factory | Entered another Factory area 4023 | -6/Factory | Accompanied by 2 allies 4023 | -6/Factory | Evolved 2 slots: Utility x2 4102 | -6/Factory | Identified exit to Lower Caves 4102 | -6/Factory | Identified exit to Extension 4124 | -6/Factory | Central database locked down 4408 | -6/Factory | P-60 Hacker assimilated hostile W-25 Informer 4411 | -6/Factory | P-60 Hacker assimilated hostile Y-54 Guardian 4535 | -6/Factory | Build established: Hacker-Skirmisher 4711 | -6/Factory | Entered Extension 4718 | -6/Extension | Disrupted transfer network 4720 | -6/Extension | Rescued a captive Derelict 4722 | -6/Extension | Rescued a captive Derelict 4723 | -6/Extension | Rescued a captive Derelict 4736 | -6/Extension | Rescued a captive Derelict 4745 | -6/Extension | Rescued a captive Derelict 4747 | -6/Extension | Rescued a captive Derelict 5198 | -6/Extension | Spotted B-75 Beast 5211 | -6/Extension | Destroyed B-75 Beast 5222 | -6/Extension | Extracted ID and sensor layout for unrecognized location from A7's data core 5236 | -6/Extension | Lost 6 parts (2p2n2u) 5245 | -6/Extension | Discovered new exit (range 16) 5334 | -6/Extension | Core integrity fell below 50% 5367 | -6/Extension | Lost 12 parts (2p2n4u4w) 5492 | -6/Extension | Entered Factory 5492 | -5/Factory | Evolved 2 slots: Propulsion x1, Weapon x1 5578 | -5/Factory | Garrison activated, responded to threat 5768 | -5/Factory | Discovered new exit (range 9) 6086 | -5/Factory | Build established: Wizard-Gunner 6307 | -5/Factory | Fabricated Enh. Hardcell Cannon? 6352 | -5/Factory | Identified exit to Factory 6352 | -5/Factory | Hacking Suite fried by hacking feedback 6525 | -5/Factory | Repaired Imp. KE Penetrator 6662 | -5/Factory | Entered another Factory area 6662 | -4/Factory | Evolved 2 slots: Propulsion x1, Utility x1 6885 | -4/Factory | Build established: Scavenger-Gunner 6922 | -4/Factory | Spotted B-86 Titan 6927 | -4/Factory | Allies destroyed B-86 Titan 7093 | -4/Factory | Discovered new exit (range 15) 7162 | -4/Factory | First assault squad dispatched 7208 | -4/Factory | Entered Research 7208 | -3/Research | Evolved 2 slots: Power x1, Propulsion x1 7378 | -3/Research | Identified exit to Quarantine 7438 | -3/Research | Lost 4 parts (1p2u1w) 7518 | -3/Research | Discovered new exit (range 7) 7945 | -3/Research | System corruption reached 10% 8208 | -3/Research | First assault squad dispatched 8430 | -3/Research | Core integrity fell below 50% 8444 | -3/Research | Garrison activated, responded to threat 8446 | -3/Research | High security lockdown imminent 8471 | -3/Research | Lost 5 parts (2p1n2w) 8504 | -3/Research | Entered Quarantine 8550 | -3/Quarantine | Spotted Alpha 7 8561 | -3/Quarantine | Found Alien Launcher 8561 | -3/Quarantine | Identified Sigix Terminator 8603 | -3/Quarantine | Central database locked down 8694 | -3/Quarantine | Crushed by falling debris 8753 | -3/Quarantine | Destroyed 9 combat bots 8754 | -3/Quarantine | First assault squad dispatched 8759 | -3/Quarantine | Lost 11 parts (3p3n3u2w) 8763 | -3/Quarantine | Core integrity fell below 20% 8767 | -3/Quarantine | Scanned by Researcher 8816 | -3/Quarantine | Lost 3 parts (1n2w) 8826 | -3/Quarantine | Fired Sigix Terminator 8826 | -3/Quarantine | Destroyed self with Sigix Terminator Last Messages --------------- 08826_ Destroyed Adv. Heat Sink. 08826_ Destroyed Plasma Rifle. 08826_ Destroyed Lgt. Antimatter Reactor. 08826_ G-67 Veteran destroyed. 08826_ Destroyed Flexi-carbon Leg. 08826_ Destroyed Microactuators. 08826_ L-61 Swordsman destroyed. 08826_ Destroyed Lgt. Ion Engine. 08826_ Destroyed Wheel. 08826_ K-01 Serf destroyed. 08826_ Destroyed Med. Treads. 08826_ Destroyed Hvy. Armor Plating. 08826_ B-74 Champion destroyed. 08826_ M-36 Artificer destroyed. 08826_ G-73 Enforcer destroyed. 08826_ G-67 Veteran destroyed. 08826_ Destroyed Wheel. 08826_ Destroyed Lgt. Ion Engine. 08826_ K-01 Serf destroyed. 08826_ Imp. Core Shielding destroyed. Map ----- +----------------------------------------------------+ | ?## #########????# #??? | | ?# # ! #????########### #??? | | ?# # #???????????????? #??? | | ?# " + "S #????????????????? #??? | | ?# # """ !#?????????????????? ?? | | ?# # "" #???????????????????? ? | | ?### ### #????????????????????? | | ???# #?########?????????????????????? | | ???# #???????????????????????????????? | | ???# #???????????????????????????????? | | ???# #???########????????????????????? | | ???# ##### ] ; ?????????????????? | | ???# # ; ; ?????????????????? | | ???# # ; ; ?????????????????? | | ???# # ; ; ?????????????????? | | ???# # ; ; #####+###????????? | | ???# # ; ! # #????????? | | ???# #;;;;;;;;;;;;;;#"# T" #????????? | | " = [ * "" +????????? | | ?#####; ; ;;;;;;### #????????? | | ?# ; ; ; ! #[ ! #????????? | | ?# ; #### ##????????? | | ?# ; # #?????????? | | ?# ; # #?????????? | | ????! ; # #?????????? | | ?????????# ;@ ??#### #?????????? | | ??????####; ;;;####### #?????????? | | ??????+ %= @! %$ #?????????? | | ??????# #u########## #?????????? | | ??????# = #[!% = #???# #?????????? | | ???#^ !+[!= #???# #?????????? | | ???# ########[ #???# #?????????? | | ???#?????# ; " #???# #?????????? | | ????????# # # """ #???# #?????????? | | ???????# ?###/ #???# #?????????? | | ???????#????########???# #?????????? | | ???????????????????????# #?????????? | | ???????????????????????# =[#?????????? | | ???????????????????????# %=#?????????? | | ???????????????????????# !#?????????? | | ???????????????????????# #?????????? | | ???????????????????????# #?????????? | | ???????????????????????# ?????????? | | ???????????????????????? ?????????? | | ???????????????????????? ?????????? | | ???????????????????????? ?????????? | | ????????????????????????####?????????? | | ?????????????????????????????????????? | | ?????????????????????????????????????? | | ?????????????????????????????????????? | +----------------------------------------------------+ Best States ------------- Heat Dissipation 96 Energy Generation 49 Energy Capacity 720 Matter Stores 300 Matter Capacity 300 Sight Range 22 Terrain Scan Range 16 Terrain Scan Density 585 Armor Coverage 450 Resistance: KI 30 Core Shielding 30 Phase Shifting 10 Evasion (%) 67 Targeting Accuracy 26 Target Analysis 12 Recoil Reduction 6 Matter Filtering 30 Particle Charging 15 Offensive Hacking 50 Defensive Hacking 10 Trap Extractor Capacity 6 Item Schematics ----------------- Exp. Cooling System | -3/Quarantine | Archive Enh. Multireflex Exoskeleton | -3/Quarantine | Archive Robot Schematics ------------------ R-10 Processor | -3/Quarantine | Archive Fabricated ------------ Enh. Hardcell Cannon | x2 | -5/Factory | Preloaded Repaired ---------- Imp. KE Penetrator | 12% | -5/Factory Studied --------- Beam Rifle | -7/Factory | Hacked Minigun | -7/Factory | Hacked Imp. Treads | -7/Factory | Hacked Rocket Launcher | -7/Factory | Hacked Lgt. Treads | -7/Factory | Hacked Gatling Laser | -6/Factory | Hacked Arc Projector | -6/Factory | Hacked Field Laser | -6/Factory | Hacked Lrn. Missile Launcher | -3/Quarantine | Hacked Phase Gun | -3/Quarantine | Hacked Alien Tech Used ----------------- Sigix Terminator Achievements -------------- None Challenges ------------ None Player 2 | -11 -10 -10 -10 -9 -8 -7 -6 -6 -5 -4 -3 -3 ---------- Run | Yrd Mat Min Exi Min Mat Fac Fac Ext Fac Fac Res Qua Slots Evolved 14 | . . . . 4 2 2 . 2 2 2 . . Power 1 | . . . . . 1 . . . . . . . Propulsion 2 | . . . . 1 . . . . . 1 . . Utility 7 | . . . . 1 1 1 . 1 2 1 . . Weapon 4 | . . . . 2 . 1 . 1 . . . . Parts Attached 159 | . 9 8 2 2 9 26 8 9 25 13 36 12 Parts Lost 38 | . . 3 . . . 3 . 1 1 4 20 6 Damage Taken 8167 | . 146 639 . 17 401 526 416 274 498 984 3402 864 Core 959 | . 18 108 . . 41 26 40 14 . 21 479 212 Player 2/Cogmind (%) 35 | . 20 80 . . 73 16 33 4 . 9 61 36 Absorbed by Shields . | . . . . . . . . . . . . . Damage Inflicted 15716 | . 235 319 . 89 898 1387 1225 1637 1286 2807 5365 468 Player 2/Cogmind (%) 35 | . 50 48 . 25 64 44 56 46 29 38 55 4 Combat Hostiles Destroyed 115 | . 7 7 . 3 7 12 9 11 13 12 30 4 Player 2/Cogmind (%) 48 | . 63 58 . 60 58 50 45 44 56 31 66 19 Game ------ Seed RocketDataMapper Manual? 0 Play Time 01:14:46 Cumulative 1230.7 hours Start 2025.11.23 @ 13:32:13 End 2025.11.24 @ 20:35:03 Sessions 6 Manual Loads 0 Difficulty Rogue Special Mode AFD2020/Player2 Game No. 1514 Rogue 1230 Adventurer 124 Explorer 160 Win Type - Total 58 Types 44/0/8/4/1/0/0/1/0/0 Lore% 93 Gallery% 86 Achievement% 66 Wizard Run 0 Options --------- Layout 0 ASCII 0 Keyboard 1 Movement Numpad Keybinds 0 Fullscreen 2 Font 18/X11 Map View 76x50 Zoom Use 0% Tactical HUD 1 Map Filters NONE Filters NONE Steam 1 RUN: b9de5c0d-ae9f-4acd-89c9-c479253e22a3